fUSD/lending_fUSD_20260111
["ID","MTS","AMOUNT","RATE_DAILY","PERIOD"]
[401275268,1768091435582,-620.0,0.00020872,2]
[401275269,1768091435592,-322.6107,0.00020872,2]
[401275270,1768091435602,-4820.0,0.00020901,2]
[401275271,1768091435612,-2437.0,0.00020901,2]
[401275272,1768091435623,-17428.53080348,0.00020982,2]
[401275273,1768091435632,-350.0,0.00021,2]
[401275274,1768091435643,-1266.0,0.00021052,2]
[401275275,1768091435653,-505.0,0.00021052,2]
[401275276,1768091435663,-923.791,0.00021052,2]
[401275277,1768091435672,-1211.187,0.00021052,2]
[401275278,1768091435682,-2000.0,0.000212,2]
[401275279,1768091435692,-1746.0,0.00021453,2]
[401275280,1768091435702,-385.40304122,0.00021576,2]
[401275281,1768091435712,-385.40304122,0.00021576,2]
[401275282,1768091435723,-18564.567615,0.00021618,2]
[401275283,1768091435734,-151.0,0.00021618,2]
[401275284,1768091435745,-151.0,0.00021618,2]
[401275285,1768091435755,-4453.21234344,0.000219,2]
[401275286,1768091435765,-1613.0,0.00021931,2]
[401275287,1768091435775,-500.0,0.00021955,2]
[401275288,1768091435785,-167.33,0.00021967,2]
[401275289,1768091435795,-500.0,0.00021999,2]
[401275290,1768091435804,-500.0,0.00021999,2]
[401275291,1768091435814,-500.0,0.00021999,2]
[401275292,1768091435823,-500.0,0.00021999,2]
[401275293,1768091435832,-5047.41,0.00022,7]
[401275294,1768091435842,-500.0,0.00022018,2]
[401275295,1768091435851,-195.61440438,0.00022059,2]
[401275296,1768091435861,-1746.0,0.00022162,2]
[401275297,1768091435870,-500.0,0.00022175,2]
[401275298,1768091435881,-744.0,0.00022221,2]
[401275299,1768091435890,-598.83965966,0.00022242,2]
[401275300,1768091435899,-998.0,0.00022242,2]
[401275301,1768091435908,-974.0,0.00022444,2]
[401275302,1768091435918,-744.0,0.00022472,2]
[401275303,1768091435930,-744.0,0.00022475,2]
[401275304,1768091435940,-500.0,0.00022488,2]
[401275305,1768091435950,-974.0,0.00022496,2]
[401275306,1768091435960,-744.0,0.00022503,2]
[401275307,1768091435971,-974.0,0.00022509,2]
[401275308,1768091435980,-151.0,0.00022533,2]
[401275309,1768091435991,-151.0,0.00022533,2]
[401275310,1768091436010,-6998.0,0.00022533,2]
[401275311,1768091436021,-744.0,0.00022564,2]
[401275312,1768091436034,-974.0,0.00022614,2]
[401275313,1768091436051,-151.0,0.00022614,2]
[401275314,1768091436067,-151.0,0.00022627,2]
[401275315,1768091436080,-974.0,0.00022627,2]
[401275316,1768091436094,-974.0,0.00022678,2]
[401275317,1768091436107,-17428.53080348,0.00022765,2]
[401275318,1768091436124,-151.0,0.00022872,2]
[401275319,1768091436139,-243.093043,0.00022872,2]
[401275320,1768091436153,-151.0,0.00022872,2]
[401275321,1768091436167,-1746.0,0.00022872,2]
[401275322,1768091436179,-974.0,0.00022874,2]
[401275323,1768091436193,-974.0,0.00022953,2]
[401275324,1768091436207,-974.0,0.00022984,2]
[401275325,1768091436221,-400.0,0.00023,2]
[401275326,1768091436236,-744.0,0.00023016,2]
[401275327,1768091436250,-744.0,0.00023019,2]
[401275328,1768091436266,-744.0,0.0002304,2]
[401275329,1768091436279,-744.0,0.00023083,2]
[401275330,1768091436292,-974.0,0.00023176,2]
[401275331,1768091436306,-974.0,0.00023207,2]
[401275332,1768091436320,-157.72323008,0.00023254,2]
[401275333,1768091436334,-974.0,0.00023281,2]
[401275334,1768091436348,-500.0,0.00023397,2]
[401275335,1768091436361,-150.0,0.00023397,2]
[401275336,1768091436373,-500.0,0.00023397,2]
[401275337,1768091436386,-250.0,0.00023397,2]
[401275338,1768091436398,-744.0,0.00023398,2]
[401275339,1768091436415,-744.0,0.0002341,2]
[401275340,1768091436425,-500.0,0.00023452,2]
[401275341,1768091436436,-500.0,0.00023507,2]
[401275342,1768091436448,-500.0,0.00023561,2]
[401275343,1768091436463,-1746.0,0.00023581,2]
[401275344,1768091436475,-500.0,0.00023616,2]
[401275345,1768091436486,-500.0,0.00023671,2]
[401275346,1768091436498,-500.0,0.00023726,2]
[401275347,1768091436510,-167.33,0.00023734,2]
[401275348,1768091436523,-500.0,0.00023781,2]
[401275349,1768091436535,-500.0,0.00023835,2]
[401275350,1768091436548,-500.0,0.0002389,2]
[401275351,1768091436561,-4820.0,0.00023901,2]
[401275352,1768091436573,-2437.0,0.00023901,2]
[401275353,1768091436585,-500.0,0.00023945,2]
[401275354,1768091436597,-151.0,0.00023945,2]
[401275355,1768091436609,-500.0,0.00024,2]
[401275356,1768091436621,-526.92422386,0.00024013,2]
[401275357,1768091436639,-1143.0,0.00024029,2]
[401275358,1768091436653,-1266.0,0.00024052,2]
[401275359,1768091436665,-505.0,0.00024052,2]
[401275360,1768091436678,-914.0,0.00024052,2]
[401275361,1768091436690,-1201.0,0.00024052,2]
[401275362,1768091436702,-151.0,0.00024052,2]
[401275363,1768091436715,-151.0,0.00024052,2]
[401275364,1768091436727,-151.0,0.00024052,2]
[401275365,1768091436740,-151.0,0.00024052,2]
[401275366,1768091436753,-151.0,0.00024052,2]
[401275367,1768091436766,-151.0,0.00024052,2]
[401275368,1768091436779,-500.0,0.00024055,2]
[401275369,1768091436791,-151.0,0.00024088,2]
[401275370,1768091436803,-156.828624,0.00024088,2]
[401275371,1768091436815,-151.0,0.00024088,2]
[401275372,1768091436828,-166.516619,0.00024088,2]
[401275373,1768091436841,-151.0,0.00024088,2]
[401275374,1768091436852,-5047.41,0.000241,7]
[401275375,1768091436865,-500.0,0.00024109,2]
[401275376,1768091436878,-744.0,0.0002413,2]
[401275377,1768091436891,-661.7,0.00024134,2]
[401275378,1768091436903,-482.91,0.00024134,2]
[401275379,1768091436915,-965.82,0.00024134,2]
[401275380,1768091436929,-965.82,0.00024134,2]
[401275381,1768091436942,-482.91,0.00024134,2]
[401275382,1768091436954,-500.0,0.00024164,2]
[401275383,1768091436966,-954.0,0.000242,2]
[401275384,1768091436980,-300.0,0.000242,2]
[401275385,1768091436993,-979.0,0.000242,2]
[401275386,1768091437005,-500.0,0.00024219,2]
[401275387,1768091437018,-744.0,0.00024258,2]
[401275388,1768091437030,-500.0,0.00024274,2]
[401275389,1768091437042,-1746.0,0.00024291,2]
[401275390,1768091437055,-500.0,0.00024329,2]
[401275391,1768091437067,-4142.314945,0.00024356,2]
[401275392,1768091437079,-500.0,0.00024374,2]
[401275393,1768091437091,-352.0,0.00024383,2]
[401275394,1768091437104,-1000.0,0.00024384,2]
[401275395,1768091437116,-501.0,0.00024397,2]
[401275396,1768091437128,-800.0,0.0002444,9]
[401275397,1768091437140,-800.0,0.0002444,9]
[401275398,1768091437152,-800.0,0.0002444,9]
[401275399,1768091437165,-800.0,0.0002444,9]
[401275400,1768091437177,-800.0,0.0002444,9]
[401275401,1768091437188,-800.0,0.0002444,9]
[401275402,1768091437200,-800.0,0.0002444,9]
[401275403,1768091437213,-800.0,0.0002444,9]
[401275404,1768091437225,-1000.0,0.000245,2]
[401275405,1768091437238,-5934.15588134,0.000245,2]
[401275406,1768091437250,-582.66868607,0.00024544,2]
[401275407,1768091437263,-17428.53080348,0.00024549,2]
[401275408,1768091437275,-795.37167946,0.0002456,2]
[401275409,1768091437287,-241.28692,0.0002465,2]
[401275410,1768091437300,-241.28693,0.0002465,2]
[401275411,1768091437312,-241.28693,0.0002465,2]
[401275413,1768091437324,-151.0,0.00024658,2]
[401275414,1768091437336,-151.0,0.00024658,2]
[401275415,1768091437349,-151.0,0.00024658,2]
[401275416,1768091437362,-151.0,0.00024658,2]
[401275418,1768091437374,-1000.0,0.00024658,2]
[401275420,1768091437387,-119170.82152384,0.0002466,2]
[401275421,1768091437400,-151.0,0.0002466,7]
[401275422,1768091437414,-151.0,0.0002466,7]
[401275423,1768091437427,-290.08099,0.0002466,7]
[401275424,1768091437441,-270.057793,0.0002466,7]
[401275425,1768091437454,-151.0,0.0002466,7]
[401275426,1768091437466,-151.0,0.0002466,7]
[401275427,1768091437480,-221.51285843,0.00024662,2]
[401275428,1768091437494,-241.28693,0.0002467,2]
[401275429,1768091437508,-241.28693,0.0002469,2]
[401275430,1768091437520,-1144.8189775,0.00024703,2]
[401275431,1768091437533,-500.0,0.00024727,2]
[401275432,1768091437545,-150.0,0.0002478,2]
[401275433,1768091437559,-500.0,0.00024798,2]
[401275434,1768091437572,-500.0,0.00024798,2]
[401275435,1768091437586,-500.0,0.00024798,2]
[401275436,1768091437599,-500.0,0.00024798,2]
[401275437,1768091437614,-500.0,0.00024798,2]
[401275438,1768091437626,-500.0,0.00024799,2]
[401275439,1768091437641,-500.0,0.00024799,2]
[401275440,1768091437654,-500.0,0.00024799,2]
[401275441,1768091437667,-500.0,0.00024799,2]
[401275442,1768091437681,-500.0,0.00024799,2]
[401275443,1768091437694,-500.0,0.00024799,2]
[401275444,1768091437708,-500.0,0.00024799,2]
[401275445,1768091437720,-500.0,0.00024799,2]
[401275446,1768091437734,-500.0,0.00024799,2]
[401275447,1768091437748,-500.0,0.00024799,2]
[401275448,1768091437761,-151.0,0.000248,7]
[401275449,1768091437774,-151.0,0.000248,7]
[401275450,1768091437787,-151.0,0.000248,7]
[401275451,1768091437799,-151.0,0.000248,7]
[401275453,1768091437812,-151.0,0.000248,7]
[401275454,1768091437824,-151.0,0.000248,7]
[401275455,1768091437836,-169482.49350256,0.000248,3]
[401275456,1768091437858,-24509.12180297,0.000248,3]
[401275457,1768091437872,-16686.27702304,0.000248,3]
[401275458,1768091437887,-16915.71129259,0.000248,3]
[401275459,1768091437906,-1209.65538439,0.000248,3]
[401275460,1768091437921,-659.1457183,0.000248,3]
[401275461,1768091437938,-606.48713533,0.000248,3]
[401275462,1768091437953,-4438.60482183,0.000248,3]
[401275463,1768091437975,-565.65132839,0.000248,3]
[401275464,1768091437990,-3207.69999999,0.000248,3]
[401275465,1768091438011,-2925.51092998,0.000248,3]
[401275466,1768091438031,-4900.2279375,0.000248,3]
[401275467,1768091438047,-728.33421554,0.000248,3]
[401275468,1768091438062,-387.105,0.000248,3]
[401275469,1768091438077,-296.40886238,0.000248,3]
[401275470,1768091438092,-680.07227008,0.000248,3]
[401275471,1768091438115,-151.0,0.00018,2]
[401275472,1768091438127,-149.0,0.000248,3]
[401275473,1768091438143,-1249.18479842,0.000248,3]
[401275474,1768091438159,-497.55228091,0.000248,3]
[401275475,1768091438918,5068.24995996,0.00013792,2]
[401275476,1768091438949,7826.83578414,0.00013792,2]
[401275477,1768091438969,-151.0,0.00018,2]
[401275478,1768091438980,-151.0,0.00018,2]
[401275479,1768091438991,-500.0,0.000202,2]
[401275480,1768091439002,-596.18466805,0.00020901,2]
[401275481,1768091439022,-733.81533195,0.00020901,2]
[401275482,1768091439031,-1330.0,0.00023901,2]
[401275483,1768091439042,-151.0,0.00024052,2]
[401275484,1768091439051,-151.0,0.00024052,2]
[401275485,1768091439061,-21133.54262523,0.000248,3]
[401275487,1768091439937,-463.35918944,0.00013889,2]
[401275488,1768091439948,-3972.84503597,0.00013889,2]
[401275494,1768091440683,-1.7e-07,0.00013889,2]
[401275515,1768091444367,-11577.45566282,0.00013889,2]
[401275516,1768091444536,-2583.6275441,0.00013889,2]
[401275522,1768091461246,300.0,0.00013888,2]
[401275523,1768091482416,489.20930786,0.00013847,2]
[401275524,1768091486453,500.0,0.00013888,2]
[401275525,1768091494293,2240.588,0.00013611,2]
[401275526,1768091494402,188.893,0.00013611,2]
[401275527,1768091497879,154.22621811,0.00013818,2]
[401275528,1768091504106,222.24514313,0.00013818,2]
[401275529,1768091510350,2276.0,0.00027397,120]
[401275531,1768091524263,154.22621811,0.00013818,2]
[401275532,1768091544533,500.0,0.00013847,2]
[401275533,1768091582490,300.0,0.00013888,2]
[401275534,1768091582526,150.0,0.00013888,2]
[401275535,1768091617287,2136.51,0.00010926,2]
[401275536,1768091617517,2136.51,0.00011479,2]
[401275537,1768091617738,527.60211279,0.00012031,2]
[401275538,1768091617761,1608.90788721,0.00012031,2]
[401275539,1768091617975,2136.51,0.00012584,2]
[401275540,1768091618193,2136.51,0.00013137,2]
[401275541,1768091618443,2136.51,0.00013689,2]
[401275542,1768091634382,222.24514313,0.00013818,2]
[401275543,1768091654316,154.22621811,0.00013818,2]
[401275544,1768091664510,154.22621811,0.00013818,2]
[401275545,1768091694126,161.2772,0.00013789,2]
[401275546,1768091701230,1200.0,0.00013888,2]
[401275547,1768091720620,89.59733344,0.00013888,2]
[401275548,1768091720650,410.40266656,0.00013888,2]
[401275549,1768091720709,500.0,0.00013888,2]
[401275550,1768091720765,500.0,0.00013888,2]
[401275551,1768091720815,500.0,0.00013888,2]
[401275552,1768091721414,500.0,0.00013888,2]
[401275553,1768091721467,500.0,0.00013888,2]
[401275554,1768091721523,500.0,0.00013888,2]
[401275555,1768091721585,500.0,0.00013888,2]
[401275556,1768091721640,500.0,0.00013888,2]
[401275557,1768091721980,500.0,0.00013888,2]
[401275558,1768091722032,500.0,0.00013888,2]
[401275559,1768091722077,500.0,0.00013888,2]
[401275560,1768091722123,500.0,0.00013888,2]
[401275561,1768091722177,500.0,0.00013888,2]
[401275562,1768091722226,500.0,0.00013888,2]
[401275563,1768091722291,500.0,0.00013888,2]
[401275564,1768091722338,500.0,0.00013888,2]
[401275565,1768091722388,500.0,0.00013888,2]
[401275566,1768091722439,500.0,0.00013888,2]
[401275567,1768091722498,500.0,0.00013888,2]
[401275568,1768091722558,89.60733344,0.00013888,2]
[401275569,1768091722589,543.82388884,0.00013888,2]
[401275570,1768091722639,500.0,0.00013888,2]
[401275571,1768091749294,1073.5027,0.00013789,2]
[401275572,1768091763123,500.0,0.00013888,2]
[401275573,1768091763415,500.0,0.00013888,2]
[401275574,1768091763484,237.04791359,0.00013888,2]
[401275575,1768091790785,154.22621811,0.00013796,2]
[401275576,1768091825127,6491.40927946,0.00013796,2]
[401275577,1768091825155,5114.16789023,0.00013796,2]
[401275578,1768091835308,500.0,0.00013888,2]
[401275579,1768091835565,500.0,0.00013888,2]
[401275580,1768091835797,500.0,0.00013888,2]
[401275581,1768091848517,3385.84210977,0.00013796,2]
[401275582,1768091848543,1954.98433557,0.00013796,2]
[401275583,1768091848722,151.0,0.00013889,2]
[401275586,1768091873659,-6265.56924151,0.00013889,2]
[401275587,1768091874531,-10000.01,0.00013889,2]
[401275588,1768091874739,-10000.01,0.00013889,2]
[401275589,1768091891361,-10000.01,0.00013889,2]
[401275590,1768091891486,-10000.01,0.00013889,2]
[401275591,1768091891624,-10000.01,0.00013889,2]
[401275592,1768091891743,-10000.01,0.00013889,2]
[401275593,1768091892133,-10000.01,0.00013889,2]
[401275594,1768091892329,-10000.01,0.00013889,2]
[401275595,1768091892492,-10000.01,0.00013889,2]
[401275596,1768091907800,-1108.38912562,0.00013789,2]
[401275597,1768091909995,-210.73445015,0.00013789,2]
[401275598,1768091912368,-1180.87642423,0.00013789,2]
[401275599,1768091933011,154.22621811,0.00013796,2]
[401275600,1768091960647,18195.99593498,0.00013889,10]
[401275601,1768092094336,1792.471,0.00013611,2]
[401275602,1768092094742,188.89427848,0.00013611,2]
[401275603,1768092096611,474.9503,0.00013789,2]
[401275604,1768092121581,1662.89,0.00013889,2]
[401275605,1768092145998,500.0,0.00013888,2]
[401275606,1768092176190,500.0,0.00013888,2]
[401275607,1768092212554,2364.82535495,0.00013791,2]
[401275608,1768092212590,9815.7205073,0.00013791,2]
[401275609,1768092275958,184.2894927,0.00013101,2]
[401275610,1768092275984,528.1547823,0.00013101,2]
[401275611,1768092337608,162.0,0.000273,120]
[401275612,1768092338660,162.0,0.000273,120]
[401275613,1768092358784,4806.74380077,0.00013791,2]
[401275614,1768092359370,162.0,0.000273,120]
[401275615,1768092447279,4665.11141693,0.00013789,2]
[401275616,1768092447310,10000.01,0.00013789,2]
[401275617,1768092447341,10000.01,0.00013789,2]
[401275618,1768092447368,10000.01,0.00013789,2]
[401275619,1768092447396,10000.01,0.00013789,2]
[401275620,1768092447420,10000.01,0.00013789,2]
[401275621,1768092447445,10000.01,0.00013789,2]
[401275622,1768092447470,10000.01,0.00013789,2]
[401275623,1768092447496,10000.01,0.00013789,2]
[401275624,1768092447522,10000.01,0.00013789,2]
[401275625,1768092449887,-163.85856116,0.00013789,2]
[401275626,1768092451536,-461.22934968,0.00013789,2]
[401275627,1768092453379,-325.26576385,0.00013789,2]
[401275628,1768092483806,-150.0,0.00013788,2]
[401275629,1768092495601,1200.0,0.00013788,2]
[401275630,1768092545360,171.0,7.5e-07,2]
[401275631,1768092598969,8329.01,0.00013689,2]
[401275632,1768092598993,3759.6893407,0.00013689,2]
[401275633,1768092601261,300.0,0.00013788,2]
[401275634,1768092601349,1200.0,0.00013788,2]
[401275640,1768092631559,-108180.33847362,0.00013789,2]
[401275643,1768092631616,-14088.47926636,0.00013789,2]
[401275644,1768092631627,-2659.24584886,0.00013789,2]
[401275645,1768092631638,-265.84703492,0.00013789,2]
[401275646,1768092631649,-277.20013625,0.00013789,2]
[401275647,1768092631669,-271.54991355,0.00013789,2]
[401275648,1768092631680,-1251.37727158,0.00013789,2]
[401275649,1768092631691,-3623.32297995,0.00013789,2]
[401275650,1768092631706,-1998.50742485,0.00013789,2]
[401275651,1768092631717,-4158.62726896,0.00013789,2]
[401275652,1768092631728,-748.00966555,0.00013789,2]
[401275653,1768092631739,-612.89013257,0.00013789,2]
[401275654,1768092631781,-30900.0,0.00013789,2]
[401275656,1768092631792,-452.91224315,0.00013789,2]
[401275743,1768092637667,-226011.36409111,0.00013789,2]
[401275744,1768092637720,-25946.80758099,0.00013789,2]
[401275745,1768092637776,-2833.53678,0.00013789,2]
[401275746,1768092637829,-17779.38019671,0.00013789,2]
[401275747,1768092640070,-57782.66701947,0.00013789,2]
[401275749,1768092644177,-2207.96057256,0.00013789,2]
[401275750,1768092644188,-1876.43942744,0.00013789,2]
[401275752,1768092645620,-5175.38803091,0.00013789,2]
[401275753,1768092645635,-239223.64644354,0.00013789,2]
[401275754,1768092645650,-133047.523553,0.00013789,2]
[401275755,1768092645665,-23011.42355248,0.00013789,2]
[401275756,1768092645674,-170.3827,0.00013789,2]
[401275757,1768092645684,-7350.9322,0.00013789,2]
[401275758,1768092645693,-2500.0,0.00013839,2]
[401275759,1768092645703,-250.0,0.0001389,2]
[401275760,1768092645711,-2500.0,0.00013905,2]
[401275761,1768092645721,-2500.0,0.00013905,2]
[401275762,1768092645730,-250.0,0.00013906,2]
[401275763,1768092645739,-1000.0,0.00013947,2]
[401275764,1768092645749,-500.0,0.00013991,2]
[401275765,1768092645758,-162.0,0.00014,2]
[401275766,1768092645767,-500.0,0.00014046,2]
[401275767,1768092645775,-500.0,0.00014046,2]
[401275768,1768092645784,-500.0,0.00014046,2]
[401275769,1768092645794,-2136.51,0.00014242,2]
[401275770,1768092645803,-150.99,0.00014794,2]
[401275771,1768092645812,-827.31,0.00014794,2]
[401275772,1768092645821,-9999.99,0.00014794,2]
[401275773,1768092645831,-2136.51,0.00014794,2]
[401275774,1768092645840,-255.0,0.00014905,2]
[401275775,1768092645849,-1200.0,0.00015109,2]
[401275776,1768092645858,-420.0,0.00015109,2]
[401275777,1768092645867,-1200.0,0.00015167,2]
[401275778,1768092645876,-2500.0,0.00015168,2]
[401275779,1768092645886,-390.87752029,0.00015168,2]
[401275780,1768092645895,-195.0,0.00015168,2]
[401275781,1768092645904,-300.0,0.00015168,2]
[401275782,1768092645914,-250.0,0.00015278,2]
[401275783,1768092645923,-2136.51,0.00015347,2]
[401275784,1768092645933,-301.0995565,0.00015482,2]
[401275785,1768092645942,-162.0,0.000156,2]
[401275786,1768092645951,-12088.69934067,0.00015719,2]
[401275787,1768092645960,-2136.51,0.00015899,2]
[401275788,1768092645969,-162.0,0.000159,2]
[401275789,1768092645978,-4806.74380076,0.00015914,2]
[401275790,1768092645987,-171.91,0.00015978,2]
[401275791,1768092645996,-195.0,0.00016118,2]
[401275792,1768092646005,-500.0,0.00016437,2]
[401275794,1768092646014,-500.0,0.00016438,2]
[401275796,1768092646023,-500.0,0.00016438,2]
[401275798,1768092646032,-528.29903146,0.00016438,2]
[401275799,1768092646042,-500.0,0.00016438,2]
[401275802,1768092646052,-500.0,0.00016438,2]
[401275804,1768092646061,-500.0,0.00016438,2]
[401275806,1768092646070,-500.0,0.00016438,2]
[401275808,1768092646079,-500.0,0.00016438,2]
[401275810,1768092646089,-2136.51,0.00016452,2]
[401275811,1768092646098,-587.0,0.00016556,2]
[401275812,1768092646107,-162.0,0.000169,2]
[401275813,1768092646116,-250.0,0.00017,2]
[401275814,1768092646126,-2136.51,0.00017004,2]
[401275815,1768092646135,-500.0,0.00017443,2]
[401275816,1768092646144,-500.0,0.00017443,2]
[401275817,1768092646154,-1000.0,0.00017443,2]
[401275818,1768092646163,-1000.0,0.00017443,2]
[401275819,1768092646172,-1000.0,0.00017443,2]
[401275820,1768092646182,-496.48372017,0.00017443,2]
[401275821,1768092646192,-500.0,0.00017443,2]
[401275822,1768092646201,-500.0,0.00017443,2]
[401275823,1768092646210,-419.95971989,0.00017443,2]
[401275824,1768092646220,-998.0,0.00017443,2]
[401275825,1768092646229,-2136.51,0.00017557,2]
[401275826,1768092646238,-999.0,0.00017747,3]
[401275827,1768092646248,-12088.69934067,0.00017748,2]
[401275828,1768092646259,-162.0,0.000179,2]
[401275829,1768092646269,-225.65669469,0.00017973,2]
[401275830,1768092646280,-1235.06,0.00018,7]
[401275831,1768092646289,-4806.74380076,0.00018037,2]
[401275832,1768092646298,-2136.51,0.00018109,2]
[401275833,1768092646307,-193.0,0.00018142,2]
[401275834,1768092646316,-250.0,0.0001822,2]
[401275835,1768092646325,-500.0,0.00018336,2]
[401275836,1768092646334,-2000.0,0.000184,2]
[401275837,1768092646343,-2136.51,0.00018662,2]
[401275838,1768092646352,-157.72323008,0.00018774,2]
[401275839,1768092646361,-162.0,0.000189,2]
[401275840,1768092646371,-300.0,0.00019,2]
[401275841,1768092646379,-2136.51,0.00019214,2]
[401275842,1768092646388,-1000.0,0.00019496,2]
[401275843,1768092646397,-1500.0,0.0001954,2]
[401275844,1768092646406,-200.0,0.00019558,2]
[401275845,1768092646417,-177.9,0.00019675,2]
[401275846,1768092646427,-2136.51,0.00019767,2]
[401275847,1768092646436,-12088.69934067,0.00019778,2]
[401275848,1768092646445,-301.09955649,0.00019885,2]
[401275849,1768092646455,-200.0,0.00020062,2]
[401275850,1768092646465,-4806.74380076,0.00020161,2]
[401275851,1768092646474,-998.0,0.00020182,2]
[401275852,1768092646484,-500.0,0.000202,2]
[401275853,1768092646493,-500.0,0.00020201,2]
[401275854,1768092646503,-500.0,0.00020202,2]
[401275855,1768092646512,-499.9999,0.00020203,2]
[401275856,1768092646521,-151.50482902,0.00020319,2]
[401275857,1768092646531,-6716.86447947,0.00020319,2]
[401275858,1768092646540,-2136.51,0.00020319,2]
[401275859,1768092646550,-800.0,0.0002052,2]
[401275860,1768092646559,-2136.51,0.00020872,2]
[401275861,1768092646568,-350.0,0.00021,2]
[401275862,1768092646577,-166.66,0.00021127,2]
[401275863,1768092646586,-800.0,0.0002129,2]
[401275864,1768092646595,-2136.51,0.00021424,2]
[401275865,1768092646604,-4442.11605031,0.00021807,2]
[401275866,1768092646620,-7646.58329036,0.00021807,2]
[401275867,1768092646630,-166.66,0.00021825,2]
[401275868,1768092646639,-160.65621219,0.00021918,2]
[401275869,1768092646648,-1000.0,0.00021933,2]
[401275870,1768092646657,-1330.0,0.00021992,2]
[401275871,1768092646667,-614.0,0.00021992,2]
[401275872,1768092646677,-1405.0,0.00021992,2]
[401275873,1768092646687,-3468.0,0.00021992,2]
[401275874,1768092646696,-505.0,0.00021992,2]
[401275875,1768092646705,-1266.0,0.00021992,2]
[401275876,1768092646715,-1201.0,0.00021992,2]
[401275877,1768092646723,-914.0,0.00021992,2]
[401275878,1768092646732,-6554.0,0.00021992,2]
[401275879,1768092646741,-4820.0,0.00021992,2]
[401275880,1768092646750,-2437.0,0.00021992,2]
[401275881,1768092646759,-566.0,0.00021992,2]
[401275882,1768092646768,-4037.93,0.00022,7]
[401275883,1768092646777,-800.0,0.00022059,2]
[401275884,1768092646786,-2000.0,0.000221,2]
[401275885,1768092646795,-4806.74380076,0.00022284,2]
[401275886,1768092646804,-5919.0,0.00022466,2]
[401275887,1768092646813,-166.66,0.00022522,2]
[401275888,1768092646822,-500.0,0.00022665,2]
[401275889,1768092647113,-5529.0,0.000227,5]
[401275890,1768092647123,-800.0,0.00022829,2]
[401275891,1768092647133,-998.0,0.00022921,2]
[401275892,1768092647143,-400.0,0.00023,2]
[401275893,1768092647152,-166.66,0.0002322,2]
[401275894,1768092647162,-500.0,0.00023456,2]
[401275895,1768092647171,-1000.0,0.000235,2]
[401275896,1768092647181,-525.04244631,0.00023584,2]
[401275897,1768092647192,-800.0,0.00023598,2]
[401275898,1768092647203,-500.0,0.00023703,2]
[401275899,1768092647213,-12088.69934067,0.00023837,2]
[401275900,1768092647223,-166.66,0.00023917,2]
[401275901,1768092647234,-171.91,0.00023967,2]
[401275902,1768092647244,-1000.0,0.00024,2]
[401275903,1768092647255,-834.0,0.0002403,3]
[401275904,1768092647264,-4037.93,0.000241,7]
[401275905,1768092647274,-151.28502249,0.00024109,2]
[401275906,1768092647284,-500.0,0.00024109,2]
[401275907,1768092647293,-500.0,0.00024164,2]
[401275908,1768092647304,-500.0,0.00024219,2]
[401275909,1768092647314,-500.0,0.00024273,2]
[401275910,1768092647323,-301.09955649,0.00024288,2]